[Event "Titled Tuesday Blitz November 08 Late 2022"]
[White "Makarian, Rudik"]
[Black "Fier, Alexandr"]
[WhiteFideId "44105681"]
[BlackFideId "2107139"]
[WhiteElo "2423"]
[BlackElo "2617"]
[Result "1-0"]
[Round "11"]
[TimeControl "180+1"]
[Date "2022.11.09"]
[WhiteClock "0:00:08"]
[BlackClock "0:00:12"]

1. Nf3 {[%clk 0:03:00]}  Nf6 {[%clk 0:02:57]} 2. c4 {[%clk 0:03:00]}  e6 {[%clk 0:02:57]} 3. g3 {[%clk 0:03:00]}  d5 {[%clk 0:02:57]} 4. Bg2 {[%clk 0:03:00]}  dxc4 {[%clk 0:02:58]} 5. O-O {[%clk 0:02:57]}  c6 {[%clk 0:02:57]} 6. a4 {[%clk 0:02:51]}  Nbd7 {[%clk 0:02:49]} 7. Qc2 {[%clk 0:02:50]}  e5 {[%clk 0:02:45]} 8. Qxc4 {[%clk 0:02:42]}  Nc5 {[%clk 0:02:44]} 9. Qc2 {[%clk 0:02:03]}  Be6 {[%clk 0:02:42]} 10. Ra3 {[%clk 0:01:57]}  Qc7 {[%clk 0:02:27]} 11. Re3 {[%clk 0:01:29]}  Ncd7 {[%clk 0:02:18]} 12. d4 {[%clk 0:01:17]}  Nd5 {[%clk 0:02:10]} 13. Ng5 {[%clk 0:00:46]}  Nxe3 {[%clk 0:02:03]} 14. Nxe6 {[%clk 0:00:44]}  fxe6 {[%clk 0:02:03]} 15. Bxe3 {[%clk 0:00:44]}  exd4 {[%clk 0:02:02]} 16. Bxd4 {[%clk 0:00:44]}  O-O-O {[%clk 0:01:51]} 17. Bxa7 {[%clk 0:00:40]}  b6 {[%clk 0:01:37]} 18. a5 {[%clk 0:00:28]}  Qxa7 {[%clk 0:01:36]} 19. Qxc6+ {[%clk 0:00:27]}  Kb8 {[%clk 0:01:35]} 20. Nc3 {[%clk 0:00:25]}  Rc8 {[%clk 0:01:27]} 21. Qxe6 {[%clk 0:00:24]}  Nc5 {[%clk 0:01:25]} 22. Qd5 {[%clk 0:00:22]}  Qa6 {[%clk 0:01:10]} 23. axb6 {[%clk 0:00:18]}  Nb7 {[%clk 0:01:01]} 24. Qe5+ {[%clk 0:00:17]}  Bd6 {[%clk 0:01:01]} 25. Qxg7 {[%clk 0:00:15]}  Rhd8 {[%clk 0:00:59]} 26. Nd5 {[%clk 0:00:13]}  Nc5 {[%clk 0:00:45]} 27. Qxh7 {[%clk 0:00:12]}  Rd7 {[%clk 0:00:45]} 28. Qf5 {[%clk 0:00:12]}  Rf8 {[%clk 0:00:41]} 29. Qg4 {[%clk 0:00:12]}  Qa4 {[%clk 0:00:36]} 30. b4 {[%clk 0:00:12]}  Nb3 {[%clk 0:00:37]} 31. h4 {[%clk 0:00:06]}  Rdf7 {[%clk 0:00:33]} 32. f4 {[%clk 0:00:06]}  Nd2 {[%clk 0:00:32]} 33. Qe6 {[%clk 0:00:05]}  Qd7 {[%clk 0:00:31]} 34. Qxd7 {[%clk 0:00:05]}  Rxd7 {[%clk 0:00:31]} 35. Rd1 {[%clk 0:00:05]}  Nc4 {[%clk 0:00:32]} 36. Ra1 {[%clk 0:00:06]}  Kc8 {[%clk 0:00:22]} 37. Ra8+ {[%clk 0:00:05]}  Bb8 {[%clk 0:00:23]} 38. Ra1 {[%clk 0:00:04]}  Kd8 {[%clk 0:00:23]} 39. Rc1 {[%clk 0:00:05]}  Nd6 {[%clk 0:00:23]} 40. Kh2 {[%clk 0:00:04]}  Nf5 {[%clk 0:00:23]} 41. e4 {[%clk 0:00:04]}  Nd4 {[%clk 0:00:24]} 42. e5 {[%clk 0:00:04]}  Rg7 {[%clk 0:00:20]} 43. Nf6 {[%clk 0:00:05]}  Ne2 {[%clk 0:00:19]} 44. Rd1+ {[%clk 0:00:05]}  Kc8 {[%clk 0:00:18]} 45. b7+ {[%clk 0:00:04]}  Kc7 {[%clk 0:00:18]} 46. Rd3 {[%clk 0:00:03]}  Kb6 {[%clk 0:00:17]} 47. Re3 {[%clk 0:00:04]}  Nd4 {[%clk 0:00:16]} 48. Rd3 {[%clk 0:00:04]}  Rd8 {[%clk 0:00:15]} 49. h5 {[%clk 0:00:04]}  Bc7 {[%clk 0:00:16]} 50. Be4 {[%clk 0:00:04]}  Ne6 {[%clk 0:00:10]} 51. Rc3 {[%clk 0:00:03]}  Rh8 {[%clk 0:00:10]} 52. Rc6+ {[%clk 0:00:03]}  Kb5 {[%clk 0:00:10]} 53. Rxe6 {[%clk 0:00:04]}  Kxb4 {[%clk 0:00:11]} 54. Nd5+ {[%clk 0:00:03]}  Kc4 {[%clk 0:00:11]} 55. Nxc7 {[%clk 0:00:04]}  Rxc7 {[%clk 0:00:11]} 56. Bg6 {[%clk 0:00:04]}  Kd4 {[%clk 0:00:11]} 57. Kh3 {[%clk 0:00:05]}  Ke3 {[%clk 0:00:11]} 58. Re8 {[%clk 0:00:05]}  Rxe8 {[%clk 0:00:09]} 59. Bxe8 {[%clk 0:00:06]}  Rxb7 {[%clk 0:00:10]} 60. Kg4 {[%clk 0:00:06]}  Ke4 {[%clk 0:00:10]} 61. Bg6+ {[%clk 0:00:05]}  Kd5 {[%clk 0:00:10]} 62. h6 {[%clk 0:00:06]}  Ke6 {[%clk 0:00:10]} 63. Kg5 {[%clk 0:00:06]}  Rb8 {[%clk 0:00:10]} 64. g4 {[%clk 0:00:07]}  Ke7 {[%clk 0:00:11]} 65. h7 {[%clk 0:00:07]}  Kf8 {[%clk 0:00:11]} 66. h8=Q+ {[%clk 0:00:07]}  Ke7 {[%clk 0:00:12]} 67. Qf6+ {[%clk 0:00:08]} 1-0


[Site "https://www.chess.com"]

[Event "Titled Tuesday Blitz November 08 Late 2022"]
[White "Maksimovic, Bojan"]
[Black "Ashiku, Franc"]
[WhiteFideId "14408120"]
[BlackFideId "4700066"]
[WhiteElo "2447"]
[BlackElo "2306"]
[Result "1-0"]
[Round "11"]
[TimeControl "180+1"]
[Date "2022.11.09"]
[WhiteClock "0:01:13"]
[BlackClock "0:00:23"]

1. e4 {[%clk 0:03:00]}  c5 {[%clk 0:02:58]} 2. Nf3 {[%clk 0:03:01]}  Nc6 {[%clk 0:02:58]} 3. d4 {[%clk 0:03:01]}  cxd4 {[%clk 0:02:58]} 4. Nxd4 {[%clk 0:03:02]}  e5 {[%clk 0:02:58]} 5. Nb5 {[%clk 0:03:02]}  d6 {[%clk 0:02:59]} 6. N1c3 {[%clk 0:03:03]}  a6 {[%clk 0:02:59]} 7. Na3 {[%clk 0:03:03]}  b5 {[%clk 0:02:58]} 8. Nd5 {[%clk 0:03:02]}  Be6 {[%clk 0:02:57]} 9. c4 {[%clk 0:03:02]}  b4 {[%clk 0:02:56]} 10. Nc2 {[%clk 0:03:02]}  a5 {[%clk 0:02:56]} 11. Be2 {[%clk 0:03:02]}  g6 {[%clk 0:02:54]} 12. O-O {[%clk 0:03:02]}  Bg7 {[%clk 0:02:53]} 13. Be3 {[%clk 0:03:03]}  Nf6 {[%clk 0:02:51]} 14. f3 {[%clk 0:03:03]}  O-O {[%clk 0:02:47]} 15. Qd2 {[%clk 0:03:03]}  Nd7 {[%clk 0:02:45]} 16. b3 {[%clk 0:02:59]}  Nc5 {[%clk 0:02:44]} 17. Rfd1 {[%clk 0:02:54]}  Rb8 {[%clk 0:02:36]} 18. Bf1 {[%clk 0:02:54]}  f5 {[%clk 0:02:28]} 19. exf5 {[%clk 0:02:53]}  gxf5 {[%clk 0:02:28]} 20. Rab1 {[%clk 0:02:54]}  f4 {[%clk 0:02:28]} 21. Bf2 {[%clk 0:02:54]}  e4 {[%clk 0:02:25]} 22. Nxf4 {[%clk 0:02:43]}  Bf7 {[%clk 0:02:20]} 23. Nd4 {[%clk 0:02:29]}  Ne5 {[%clk 0:02:08]} 24. Nf5 {[%clk 0:02:25]}  Qg5 {[%clk 0:01:53]} 25. Ng3 {[%clk 0:02:02]}  Rbd8 {[%clk 0:01:33]} 26. Nd5 {[%clk 0:02:00]}  Qxd2 {[%clk 0:01:25]} 27. Ne7+ {[%clk 0:02:00]}  Kh8 {[%clk 0:01:24]} 28. Rxd2 {[%clk 0:02:01]}  exf3 {[%clk 0:01:24]} 29. Nef5 {[%clk 0:02:00]}  Bf6 {[%clk 0:01:17]} 30. Rbd1 {[%clk 0:01:59]}  Bg6 {[%clk 0:01:12]} 31. Rxd6 {[%clk 0:01:59]}  Rxd6 {[%clk 0:00:55]} 32. Rxd6 {[%clk 0:02:00]}  Ned7 {[%clk 0:00:34]} 33. Rd5 {[%clk 0:01:31]}  Bf7 {[%clk 0:00:32]} 34. Rxc5 {[%clk 0:01:30]}  Nxc5 {[%clk 0:00:32]} 35. Bxc5 {[%clk 0:01:31]}  Rc8 {[%clk 0:00:31]} 36. Bd4 {[%clk 0:01:26]}  Bxd4+ {[%clk 0:00:24]} 37. Nxd4 {[%clk 0:01:27]}  Rd8 {[%clk 0:00:23]} 38. Ngf5 {[%clk 0:01:23]}  Bg6 {[%clk 0:00:23]} 39. gxf3 {[%clk 0:01:19]}  Bxf5 {[%clk 0:00:24]} 40. Nxf5 {[%clk 0:01:20]}  Rd2 {[%clk 0:00:24]} 41. c5 {[%clk 0:01:19]}  Rxa2 {[%clk 0:00:24]} 42. c6 {[%clk 0:01:12]}  Rc2 {[%clk 0:00:23]} 43. Bc4 {[%clk 0:01:13]}  a4 {[%clk 0:00:23]} 44. c7 {[%clk 0:01:13]} 1-0


[Site "https://www.chess.com"]

[Event "Titled Tuesday Blitz November 08 Late 2022"]
[White "Marcolino, Daniel Mattos"]
[Black "Khandelwal, Ankush"]
[WhiteFideId "2106841"]
[BlackFideId "413470"]
[WhiteElo "2102"]
[BlackElo "2271"]
[Result "1-0"]
[Round "11"]
[TimeControl "180+1"]
[Date "2022.11.09"]
[WhiteClock "0:00:05"]
[BlackClock "0:00:40"]

1. d4 {[%clk 0:03:00]}  Nf6 {[%clk 0:02:57]} 2. Nf3 {[%clk 0:03:01]}  g6 {[%clk 0:02:57]} 3. g3 {[%clk 0:03:01]}  Bg7 {[%clk 0:02:58]} 4. Bg2 {[%clk 0:03:02]}  O-O {[%clk 0:02:58]} 5. O-O {[%clk 0:03:02]}  d6 {[%clk 0:02:56]} 6. b3 {[%clk 0:03:02]}  c5 {[%clk 0:02:51]} 7. Bb2 {[%clk 0:03:02]}  cxd4 {[%clk 0:02:51]} 8. Nxd4 {[%clk 0:03:02]}  Nbd7 {[%clk 0:02:48]} 9. c4 {[%clk 0:03:02]}  a6 {[%clk 0:02:48]} 10. Nc3 {[%clk 0:03:02]}  Nc5 {[%clk 0:02:46]} 11. Qd2 {[%clk 0:02:52]}  Rb8 {[%clk 0:02:41]} 12. Rfe1 {[%clk 0:02:46]}  Ne6 {[%clk 0:02:41]} 13. Nxe6 {[%clk 0:02:38]}  Bxe6 {[%clk 0:02:42]} 14. Rad1 {[%clk 0:02:37]}  Qd7 {[%clk 0:02:34]} 15. e4 {[%clk 0:02:37]}  Bh3 {[%clk 0:02:30]} 16. e5 {[%clk 0:02:27]}  dxe5 {[%clk 0:02:30]} 17. Qxd7 {[%clk 0:02:24]}  Bxd7 {[%clk 0:02:30]} 18. Rxe5 {[%clk 0:02:22]}  Be6 {[%clk 0:02:27]} 19. Re2 {[%clk 0:01:49]}  b5 {[%clk 0:02:19]} 20. c5 {[%clk 0:01:37]}  Rfd8 {[%clk 0:02:06]} 21. Red2 {[%clk 0:01:31]}  Rxd2 {[%clk 0:02:06]} 22. Rxd2 {[%clk 0:01:32]}  Rc8 {[%clk 0:02:06]} 23. b4 {[%clk 0:01:28]}  Bc4 {[%clk 0:01:55]} 24. Nd5 {[%clk 0:01:20]}  Nxd5 {[%clk 0:01:52]} 25. Bxg7 {[%clk 0:01:20]}  Kxg7 {[%clk 0:01:52]} 26. Bxd5 {[%clk 0:01:20]}  Rd8 {[%clk 0:01:52]} 27. c6 {[%clk 0:00:19]}  Bxd5 {[%clk 0:01:12]} 28. c7 {[%clk 0:00:19]}  Rc8 {[%clk 0:01:12]} 29. Rxd5 {[%clk 0:00:19]}  Rxc7 {[%clk 0:01:13]} 30. h4 {[%clk 0:00:17]}  Rc2 {[%clk 0:01:10]} 31. a3 {[%clk 0:00:13]}  Rc3 {[%clk 0:01:10]} 32. Rd7 {[%clk 0:00:13]}  e6 {[%clk 0:01:02]} 33. Kf1 {[%clk 0:00:08]}  Rxa3 {[%clk 0:01:02]} 34. Ra7 {[%clk 0:00:08]}  Ra2 {[%clk 0:00:57]} 35. Kg2 {[%clk 0:00:06]}  e5 {[%clk 0:00:55]} 36. Kf3 {[%clk 0:00:07]}  Kf6 {[%clk 0:00:54]} 37. g4 {[%clk 0:00:07]}  h6 {[%clk 0:00:53]} 38. g5+ {[%clk 0:00:05]}  hxg5 {[%clk 0:00:52]} 39. hxg5+ {[%clk 0:00:06]}  Ke6 {[%clk 0:00:52]} 40. Ke3 {[%clk 0:00:05]}  Ra3+ {[%clk 0:00:51]} 41. Ke2 {[%clk 0:00:04]}  Ra4 {[%clk 0:00:44]} 42. Ke3 {[%clk 0:00:04]}  f5 {[%clk 0:00:37]} 43. gxf6 {[%clk 0:00:04]}  Kf5 {[%clk 0:00:38]} 44. f7 {[%clk 0:00:03]}  Kf6 {[%clk 0:00:39]} 45. f8=Q+ {[%clk 0:00:04]}  Kg5 {[%clk 0:00:40]} 46. Qe7+ {[%clk 0:00:03]}  Kg4 {[%clk 0:00:40]} 47. Qxe5 {[%clk 0:00:04]}  Ra3+ {[%clk 0:00:40]} 48. Ke2 {[%clk 0:00:03]}  Ra2+ {[%clk 0:00:40]} 49. Kf1 {[%clk 0:00:04]}  Ra1+ {[%clk 0:00:40]} 50. Kg2 {[%clk 0:00:05]} 1-0


[Site "https://www.chess.com"]

[Event "Titled Tuesday Blitz November 08 Late 2022"]
[White "Martinez Reyes, Pedro Ramon"]
[Black "Manelyuk, Daniil"]
[WhiteFideId "3901807"]
[BlackFideId "44173920"]
[WhiteElo "2354"]
[BlackElo "2209"]
[Result "1-0"]
[Round "11"]
[TimeControl "180+1"]
[Date "2022.11.09"]
[WhiteClock "0:01:03"]
[BlackClock "0:00:16"]

1. e4 {[%clk 0:03:00]}  e6 {[%clk 0:02:59]} 2. c4 {[%clk 0:03:00]}  d5 {[%clk 0:02:55]} 3. exd5 {[%clk 0:03:01]}  exd5 {[%clk 0:02:55]} 4. cxd5 {[%clk 0:03:02]}  Nf6 {[%clk 0:02:56]} 5. Bb5+ {[%clk 0:03:01]}  Bd7 {[%clk 0:02:54]} 6. Bc4 {[%clk 0:03:01]}  Bd6 {[%clk 0:02:54]} 7. Nc3 {[%clk 0:03:01]}  O-O {[%clk 0:02:54]} 8. Nge2 {[%clk 0:03:02]}  Ng4 {[%clk 0:02:48]} 9. d4 {[%clk 0:02:58]}  Re8 {[%clk 0:02:43]} 10. h3 {[%clk 0:02:55]}  Qh4 {[%clk 0:02:38]} 11. O-O {[%clk 0:02:36]}  Nh2 {[%clk 0:02:28]} 12. Re1 {[%clk 0:02:25]}  Bxh3 {[%clk 0:02:28]} 13. Nf4 {[%clk 0:02:21]}  Rxe1+ {[%clk 0:01:22]} 14. Qxe1 {[%clk 0:02:22]}  Bd7 {[%clk 0:01:22]} 15. Qe4 {[%clk 0:01:53]}  Ng4 {[%clk 0:00:59]} 16. Nh3 {[%clk 0:01:46]}  Na6 {[%clk 0:00:53]} 17. Bg5 {[%clk 0:01:42]}  Qh5 {[%clk 0:00:31]} 18. Re1 {[%clk 0:01:42]}  h6 {[%clk 0:00:26]} 19. Bf4 {[%clk 0:01:42]}  Re8 {[%clk 0:00:24]} 20. Qxe8+ {[%clk 0:01:42]}  Bxe8 {[%clk 0:00:25]} 21. Rxe8+ {[%clk 0:01:43]}  Kh7 {[%clk 0:00:25]} 22. Bd3+ {[%clk 0:01:44]}  g6 {[%clk 0:00:25]} 23. Bxd6 {[%clk 0:01:27]}  cxd6 {[%clk 0:00:26]} 24. Ne4 {[%clk 0:01:27]}  Kg7 {[%clk 0:00:21]} 25. Be2 {[%clk 0:01:25]}  Nc7 {[%clk 0:00:16]} 26. Rg8+ {[%clk 0:01:21]}  Kxg8 {[%clk 0:00:10]} 27. Bxg4 {[%clk 0:01:21]}  Qh4 {[%clk 0:00:10]} 28. g3 {[%clk 0:01:19]}  Qe7 {[%clk 0:00:10]} 29. Bf3 {[%clk 0:01:19]}  Kg7 {[%clk 0:00:10]} 30. Nc3 {[%clk 0:01:19]}  Qd8 {[%clk 0:00:10]} 31. Kg2 {[%clk 0:01:20]}  Ne8 {[%clk 0:00:10]} 32. Nf4 {[%clk 0:01:20]}  Nf6 {[%clk 0:00:11]} 33. Nd3 {[%clk 0:01:20]}  a6 {[%clk 0:00:11]} 34. Ne2 {[%clk 0:01:11]}  Qb6 {[%clk 0:00:11]} 35. b3 {[%clk 0:01:10]}  Qa5 {[%clk 0:00:11]} 36. a4 {[%clk 0:01:10]}  Qd2 {[%clk 0:00:10]} 37. Nec1 {[%clk 0:01:07]}  g5 {[%clk 0:00:09]} 38. g4 {[%clk 0:01:07]}  Qc2 {[%clk 0:00:08]} 39. Kg3 {[%clk 0:01:06]}  Qc3 {[%clk 0:00:08]} 40. Kg2 {[%clk 0:01:02]}  Qxd4 {[%clk 0:00:08]} 41. Kg3 {[%clk 0:01:03]}  Qf4+ {[%clk 0:00:08]} 42. Nxf4 {[%clk 0:01:03]}  gxf4+ {[%clk 0:00:09]} 43. Kxf4 {[%clk 0:01:04]}  Nd7 {[%clk 0:00:09]} 44. Nd3 {[%clk 0:01:04]}  Kf6 {[%clk 0:00:10]} 45. Ke4 {[%clk 0:01:04]}  Ke7 {[%clk 0:00:10]} 46. Kd4 {[%clk 0:01:04]}  Nf6 {[%clk 0:00:10]} 47. Be2 {[%clk 0:01:04]}  Nd7 {[%clk 0:00:10]} 48. f4 {[%clk 0:01:04]}  Nf6 {[%clk 0:00:10]} 49. g5 {[%clk 0:01:04]}  hxg5 {[%clk 0:00:10]} 50. fxg5 {[%clk 0:01:05]}  Nh7 {[%clk 0:00:11]} 51. Bg4 {[%clk 0:01:04]}  Nxg5 {[%clk 0:00:12]} 52. Bc8 {[%clk 0:01:04]}  b6 {[%clk 0:00:11]} 53. Bxa6 {[%clk 0:01:04]}  f5 {[%clk 0:00:12]} 54. Bc8 {[%clk 0:01:03]}  Kf6 {[%clk 0:00:12]} 55. b4 {[%clk 0:01:03]}  Nf7 {[%clk 0:00:13]} 56. a5 {[%clk 0:01:03]}  bxa5 {[%clk 0:00:13]} 57. bxa5 {[%clk 0:01:04]}  Ne5 {[%clk 0:00:12]} 58. Nxe5 {[%clk 0:01:03]}  dxe5+ {[%clk 0:00:13]} 59. Ke3 {[%clk 0:01:03]}  Ke7 {[%clk 0:00:13]} 60. Bxf5 {[%clk 0:01:03]}  Kd6 {[%clk 0:00:13]} 61. a6 {[%clk 0:01:04]}  Kc7 {[%clk 0:00:14]} 62. d6+ {[%clk 0:01:02]}  Kb6 {[%clk 0:00:12]} 63. d7 {[%clk 0:01:02]}  Kxa6 {[%clk 0:00:12]} 64. d8=Q {[%clk 0:01:02]}  Kb7 {[%clk 0:00:13]} 65. Qc8+ {[%clk 0:01:02]}  Ka7 {[%clk 0:00:13]} 66. Kd3 {[%clk 0:01:03]}  e4+ {[%clk 0:00:14]} 67. Kc4 {[%clk 0:01:03]}  Kb6 {[%clk 0:00:15]} 68. Bd7 {[%clk 0:01:03]}  Ka7 {[%clk 0:00:16]} 69. Qc7+ {[%clk 0:01:03]}  Ka6 {[%clk 0:00:16]} 70. Bb5# {[%clk 0:01:03]} 1-0


[Site "https://www.chess.com"]

[Event "Titled Tuesday Blitz November 08 Late 2022"]
[White "Mendonca, Mateus Nakajo"]
[Black "Winterberg, Lukas"]
[WhiteFideId "2110954"]
[BlackFideId "24622702"]
[WhiteElo "2310"]
[BlackElo "2349"]
[Result "1-0"]
[Round "11"]
[TimeControl "180+1"]
[Date "2022.11.09"]
[WhiteClock "0:00:05"]
[BlackClock "0:00:01"]

1. Nf3 {[%clk 0:03:00]}  Nf6 {[%clk 0:02:58]} 2. c4 {[%clk 0:03:00]}  e6 {[%clk 0:02:58]} 3. g3 {[%clk 0:03:01]}  d5 {[%clk 0:02:58]} 4. Bg2 {[%clk 0:03:01]}  Be7 {[%clk 0:02:59]} 5. O-O {[%clk 0:03:01]}  O-O {[%clk 0:02:59]} 6. d4 {[%clk 0:02:59]}  dxc4 {[%clk 0:02:59]} 7. Ne5 {[%clk 0:02:55]}  c5 {[%clk 0:02:59]} 8. dxc5 {[%clk 0:02:54]}  Qc7 {[%clk 0:02:59]} 9. Nxc4 {[%clk 0:02:50]}  Rd8 {[%clk 0:02:59]} 10. Qb3 {[%clk 0:02:42]}  Nc6 {[%clk 0:02:58]} 11. Bf4 {[%clk 0:02:31]}  e5 {[%clk 0:02:55]} 12. Bg5 {[%clk 0:02:11]}  Nd4 {[%clk 0:02:48]} 13. Qd1 {[%clk 0:02:04]}  Bg4 {[%clk 0:02:21]} 14. Qa4 {[%clk 0:01:30]}  Bxe2 {[%clk 0:02:06]} 15. Re1 {[%clk 0:01:23]}  Nf3+ {[%clk 0:01:23]} 16. Bxf3 {[%clk 0:01:21]}  Bxf3 {[%clk 0:01:24]} 17. Nxe5 {[%clk 0:01:16]}  Bd5 {[%clk 0:01:20]} 18. Nc3 {[%clk 0:01:12]}  Be6 {[%clk 0:01:06]} 19. b4 {[%clk 0:01:08]}  a6 {[%clk 0:00:55]} 20. Qc2 {[%clk 0:00:58]}  Nd5 {[%clk 0:00:46]} 21. Bxe7 {[%clk 0:00:55]}  Qxe7 {[%clk 0:00:43]} 22. Nxd5 {[%clk 0:00:44]}  Rxd5 {[%clk 0:00:44]} 23. Nc4 {[%clk 0:00:43]}  Rad8 {[%clk 0:00:33]} 24. Nd6 {[%clk 0:00:43]}  b6 {[%clk 0:00:25]} 25. Rac1 {[%clk 0:00:35]}  bxc5 {[%clk 0:00:25]} 26. bxc5 {[%clk 0:00:35]}  Qc7 {[%clk 0:00:23]} 27. Re3 {[%clk 0:00:27]}  h5 {[%clk 0:00:22]} 28. h4 {[%clk 0:00:23]}  Qa5 {[%clk 0:00:16]} 29. Rc3 {[%clk 0:00:21]}  Bg4 {[%clk 0:00:12]} 30. f3 {[%clk 0:00:18]}  Be6 {[%clk 0:00:11]} 31. Nb7 {[%clk 0:00:16]}  Qc7 {[%clk 0:00:09]} 32. Nxd8 {[%clk 0:00:13]}  Rxd8 {[%clk 0:00:08]} 33. Kg2 {[%clk 0:00:12]}  Qe5 {[%clk 0:00:05]} 34. Rd3 {[%clk 0:00:09]}  Rc8 {[%clk 0:00:04]} 35. Qf2 {[%clk 0:00:09]}  Qf5 {[%clk 0:00:04]} 36. Rdc3 {[%clk 0:00:08]}  Qh3+ {[%clk 0:00:04]} 37. Kg1 {[%clk 0:00:08]}  Bd5 {[%clk 0:00:04]} 38. c6 {[%clk 0:00:08]}  Rc7 {[%clk 0:00:03]} 39. Rc5 {[%clk 0:00:07]}  Qe6 {[%clk 0:00:03]} 40. Re1 {[%clk 0:00:06]}  Qd6 {[%clk 0:00:02]} 41. Rd1 {[%clk 0:00:05]}  Rxc6 {[%clk 0:00:02]} 42. Rcxd5 {[%clk 0:00:05]}  Qe6 {[%clk 0:00:01]} 43. Rd8+ {[%clk 0:00:05]} 1-0


[Site "https://www.chess.com"]

[Event "Titled Tuesday Blitz November 08 Late 2022"]
[White "Mesa Cruz, Juan Carlos"]
[Black "Yano, William Jorge Froes"]
[WhiteFideId "6423400"]
[BlackFideId "2112949"]
[WhiteElo "2059"]
[BlackElo "2122"]
[Result "1-0"]
[Round "11"]
[TimeControl "180+1"]
[Date "2022.11.09"]
[WhiteClock "0:00:05"]
[BlackClock "0:00:12"]

1. e4 {[%clk 0:03:00]}  e6 {[%clk 0:02:59]} 2. Qe2 {[%clk 0:02:56]}  c5 {[%clk 0:02:57]} 3. Nf3 {[%clk 0:02:53]}  Nc6 {[%clk 0:02:57]} 4. g3 {[%clk 0:02:52]}  Nf6 {[%clk 0:02:56]} 5. Bg2 {[%clk 0:02:51]}  d5 {[%clk 0:02:56]} 6. d3 {[%clk 0:02:50]}  Be7 {[%clk 0:02:56]} 7. O-O {[%clk 0:02:50]}  O-O {[%clk 0:02:56]} 8. e5 {[%clk 0:02:50]}  Nd7 {[%clk 0:02:56]} 9. c3 {[%clk 0:02:47]}  b5 {[%clk 0:02:56]} 10. h4 {[%clk 0:02:46]}  a5 {[%clk 0:02:56]} 11. Nbd2 {[%clk 0:02:45]}  Ba6 {[%clk 0:02:54]} 12. Re1 {[%clk 0:02:43]}  b4 {[%clk 0:02:52]} 13. Nf1 {[%clk 0:02:42]}  Qc7 {[%clk 0:02:29]} 14. N1h2 {[%clk 0:02:18]}  a4 {[%clk 0:02:23]} 15. a3 {[%clk 0:02:16]}  bxc3 {[%clk 0:02:20]} 16. bxc3 {[%clk 0:02:16]}  Rab8 {[%clk 0:02:20]} 17. h5 {[%clk 0:02:15]}  Na5 {[%clk 0:02:12]} 18. Bf4 {[%clk 0:02:05]}  Rb3 {[%clk 0:02:08]} 19. Qd2 {[%clk 0:01:59]}  Rfb8 {[%clk 0:02:06]} 20. Ra2 {[%clk 0:01:58]}  d4 {[%clk 0:02:05]} 21. c4 {[%clk 0:01:55]}  Rb1 {[%clk 0:01:48]} 22. h6 {[%clk 0:01:47]}  g6 {[%clk 0:01:44]} 23. Ng4 {[%clk 0:01:38]}  R8b3 {[%clk 0:01:39]} 24. Rxb1 {[%clk 0:01:34]}  Rxb1+ {[%clk 0:01:39]} 25. Kh2 {[%clk 0:01:34]}  Nb3 {[%clk 0:01:39]} 26. Qc2 {[%clk 0:01:31]}  Ra1 {[%clk 0:01:22]} 27. Rxa1 {[%clk 0:01:27]}  Nxa1 {[%clk 0:01:22]} 28. Qxa4 {[%clk 0:01:27]}  Bb7 {[%clk 0:01:23]} 29. Qd1 {[%clk 0:01:24]}  Qa5 {[%clk 0:01:06]} 30. Qxa1 {[%clk 0:01:22]}  Nb6 {[%clk 0:01:01]} 31. Bd2 {[%clk 0:00:55]}  Qa8 {[%clk 0:01:01]} 32. Ne1 {[%clk 0:00:51]}  Na4 {[%clk 0:01:00]} 33. Qb1 {[%clk 0:00:42]}  Bxg2 {[%clk 0:00:52]} 34. Nxg2 {[%clk 0:00:40]}  Nc3 {[%clk 0:00:51]} 35. Bxc3 {[%clk 0:00:40]}  dxc3 {[%clk 0:00:52]} 36. Qb3 {[%clk 0:00:40]}  c2 {[%clk 0:00:37]} 37. Qxc2 {[%clk 0:00:39]}  Qxa3 {[%clk 0:00:38]} 38. Qb1 {[%clk 0:00:40]}  Qa8 {[%clk 0:00:38]} 39. Qb6 {[%clk 0:00:33]}  g5 {[%clk 0:00:32]} 40. N2e3 {[%clk 0:00:22]}  Qc8 {[%clk 0:00:25]} 41. Nc2 {[%clk 0:00:14]}  f5 {[%clk 0:00:17]} 42. exf6 {[%clk 0:00:13]}  Bd8 {[%clk 0:00:17]} 43. Qd6 {[%clk 0:00:11]}  Kf7 {[%clk 0:00:17]} 44. Ne5+ {[%clk 0:00:10]}  Kxf6 {[%clk 0:00:18]} 45. Ne3 {[%clk 0:00:09]}  Bc7 {[%clk 0:00:17]} 46. N3g4+ {[%clk 0:00:08]}  Kf5 {[%clk 0:00:15]} 47. Qxc5 {[%clk 0:00:09]}  Bxe5 {[%clk 0:00:13]} 48. Qxc8 {[%clk 0:00:09]}  Bd4 {[%clk 0:00:12]} 49. Qf8+ {[%clk 0:00:08]}  Kxg4 {[%clk 0:00:13]} 50. f3+ {[%clk 0:00:08]}  Kh5 {[%clk 0:00:13]} 51. Kh3 {[%clk 0:00:08]}  Kg6 {[%clk 0:00:11]} 52. Qe8+ {[%clk 0:00:06]}  Kxh6 {[%clk 0:00:11]} 53. Qxe6+ {[%clk 0:00:06]}  Kg7 {[%clk 0:00:11]} 54. Qd7+ {[%clk 0:00:06]}  Kg6 {[%clk 0:00:12]} 55. Qxd4 {[%clk 0:00:06]}  Kh5 {[%clk 0:00:12]} 56. Qe4 {[%clk 0:00:05]}  h6 {[%clk 0:00:12]} 57. Qe8# {[%clk 0:00:05]} 1-0


[Site "https://www.chess.com"]